bitfinex-derivatives/quotes_ETHF0:USTF0_20251204
["timestamp","ask_amount","ask_price","bid_price","bid_amount"]
[1764821952501,3.2078,3206.3,3206.0,0.4578]
[1764821953399,3.2078,3206.3,3206.2,1.4989]
[1764821953600,3.2078,3206.3,3206.2,0.7539]
[1764821953796,3.2078,3206.3,3206.0,0.4578]
[1764821954507,3.2078,3206.3,3206.2,0.7539]
[1764821955008,3.2078,3206.3,3206.2,1.4989]
[1764821957709,40.8,3206.6,3206.5,1.2049]
[1764821958208,40.8,3206.6,3206.5,0.451]
[1764821961906,40.8,3206.6,3206.5,1.9499]
[1764821962205,40.8,3206.6,3206.5,1.2049]
[1764821962406,40.8,3206.6,3206.5,0.451]
[1764821970614,46.8,3206.6,3206.0,2.39581757]
[1764821970917,3.2078,3206.3,3206.0,0.451]
[1764821971111,1.07919008,3206.2,3205.3,0.00467574]
[1764821971316,3.2078,3205.7,3205.3,0.00467574]
[1764821971612,44.0078,3205.7,3205.3,0.00467574]
[1764821973718,44.0078,3205.7,3205.3,0.00691421]
[1764821974216,44.0078,3205.7,3205.6,0.7562]
[1764821974513,4.59865531,3206.4,3206.0,0.4578]
[1764821974813,4.59865531,3206.4,3205.6,0.15596]
[1764821974814,1.39085531,3206.1,3205.5,1.214]
[1764821975016,3.2078,3205.8,3205.5,1.214]
[1764821975619,3.2078,3205.8,3205.7,0.7562]
[1764821976121,3.2078,3205.8,3205.5,0.4578]
[1764821979325,4.59865531,3205.8,3205.5,0.4578]
[1764821984624,4.59865531,3205.8,3205.7,0.7562]
[1764821984823,3.2078,3205.8,3205.5,0.4578]
[1764821985320,4.59865531,3205.8,3205.5,0.4578]
[1764821986528,3.2078,3205.8,3205.7,0.7378]
[1764821986717,3.2078,3205.8,3205.5,0.4578]
[1764821987520,40.8,3206.3,3205.5,0.4578]
[1764821987521,44.0078,3206.3,3206.0,1.1885]
[1764821987726,44.0078,3206.3,3206.0,0.4507]
[1764821987928,44.0078,3206.3,3206.0,1.1885]
[1764821988729,44.0078,3206.3,3206.2,1.4996]
[1764821990532,44.0078,3206.3,3206.0,1.1885]
[1764821992733,44.0078,3206.3,3206.0,0.4507]
[1764821992928,45.39865531,3206.3,3206.0,0.4507]
[1764821995226,44.0078,3206.3,3206.0,1.1885]
[1764821996939,44.0078,3206.3,3206.0,0.4507]
[1764821997336,45.39865531,3206.3,3206.0,0.4507]
[1764821997734,45.39865531,3206.3,3205.5,3.6656]
[1764821997932,4.59865531,3205.9,3205.5,1.1956]
[1764822000435,4.59865531,3205.9,3205.5,0.4578]
[1764822001240,4.59865531,3205.9,3205.5,1.1956]
[1764822001744,4.59865531,3205.9,3205.5,0.4578]
[1764822002339,1.42743024,3205.6,3205.5,0.4578]
[1764822003045,1.42743024,3205.6,3205.5,1.1956]
[1764822004139,1.42743024,3205.6,3205.5,0.4578]
[1764822005851,1.42743024,3205.6,3205.5,1.2178]
[1764822006049,1.42743024,3205.6,3205.5,0.4578]
[1764822009548,3.2078,3205.9,3205.5,0.4578]
[1764822009855,1.42743024,3205.6,3205.5,0.4578]
[1764822011853,4.63523024,3205.9,3205.8,0.76]
[1764822012746,3.2078,3205.9,3205.8,1.4599]
[1764822013354,4.63523024,3205.9,3205.8,1.4599]
[1764822013746,4.63523024,3205.9,3205.5,0.61376]
[1764822014049,4.63523024,3205.9,3205.8,1.4599]
[1764822014845,4.63523024,3205.9,3205.8,0.76]
[1764822015954,4.63523024,3205.9,3205.5,0.61376]
[1764822016251,1.42743024,3205.6,3205.5,0.4578]
[1764822018461,42.22743024,3205.6,3205.5,0.4578]
[1764822019357,42.22743024,3205.6,3205.5,1.2178]
[1764822021352,42.22743024,3205.6,3205.5,0.4578]
[1764822021755,42.22743024,3205.6,3205.5,1.2178]
[1764822021949,42.22743024,3205.6,3205.5,1.9177]
[1764822022860,42.22743024,3205.6,3205.5,0.4578]
[1764822023260,42.22743024,3205.6,3205.5,1.2178]
[1764822023663,42.22743024,3205.6,3205.5,1.9177]
[1764822024754,40.8,3205.6,3205.5,1.9177]
[1764822024959,4.63523024,3205.9,3205.8,0.76]
[1764822025162,4.63523024,3205.9,3205.5,0.4578]
[1764822025461,40.8,3205.8,3205.7,0.76]
[1764822025859,40.8,3205.8,3205.7,1.4599]
[1764822026557,40.8,3205.8,3205.5,1.2178]
[1764822026758,1.42743024,3205.6,3205.5,1.9177]
[1764822030767,1.42743024,3205.6,3205.5,1.2178]
[1764822031663,1.42743024,3205.6,3205.5,0.4578]
[1764822032068,42.22743024,3205.6,3205.5,1.2178]
[1764822032272,42.22743024,3205.6,3205.5,1.9177]
[1764822033275,40.8,3205.6,3205.5,1.9177]
[1764822036977,40.8,3205.6,3205.5,1.9859]
[1764822046270,42.22743024,3205.6,3205.5,1.2165]
[1764822048183,40.8,3205.6,3205.5,1.9698]
[1764822048370,40.8,3205.6,3205.5,1.2165]
[1764822048572,40.8,3205.6,3205.5,0.4578]
[1764822048868,42.22743024,3205.6,3205.5,0.4578]
[1764822050080,40.8,3205.6,3205.5,1.2162]
[1764822050266,40.8,3205.6,3205.5,0.4578]
[1764822054276,40.8,3205.6,3205.3,0.00691421]
[1764822054475,4.63523024,3205.4,3205.3,0.00691421]
[1764822054673,4.63523024,3205.4,3205.3,0.76531421]
[1764822056383,4.63523024,3205.4,3205.3,0.00691421]
[1764822057382,4.63523024,3205.4,3205.3,0.76531421]
[1764822059782,4.63523024,3205.4,3205.3,0.00691421]
[1764822059981,4.63523024,3205.4,3205.3,0.76531421]
[1764822060886,3.2078,3205.4,3205.3,1.51861421]
[1764822061089,40.8,3205.6,3205.5,1.9686]
[1764822063990,3.2078,3205.8,3205.7,1.4919]
[1764822064488,44.0078,3205.8,3205.7,1.4919]
[1764822066494,44.0078,3205.8,3205.7,0.7584]
[1764822067889,44.0078,3205.8,3205.5,0.4569]
[1764822068385,1.39157154,3205.7,3205.5,0.4569]
[1764822068590,1.39157154,3205.7,3205.5,1.2255]
[1764822070284,1.39157154,3205.7,3205.5,0.4569]
[1764822072688,4.59937154,3205.7,3205.5,0.4569]
[1764822073598,4.59937154,3205.7,3205.5,1.2255]
[1764822074298,3.2078,3205.7,3205.5,1.2255]
[1764822074892,3.2078,3205.7,3205.5,0.4569]
[1764822075098,3.2078,3205.7,3205.5,1.2255]
[1764822075399,4.59937154,3205.7,3205.5,0.4569]
[1764822076499,1.39157154,3205.7,3205.5,0.4569]
[1764822076700,4.59937154,3205.7,3205.5,0.4569]
[1764822081106,3.2078,3205.6,3205.5,0.4569]
[1764822082403,3.2078,3205.6,3205.3,0.00691421]
[1764822082603,1.39157154,3205.4,3205.3,0.00691421]
[1764822086708,3.2078,3205.6,3205.5,1.2114]
[1764822087018,4.28369923,3205.6,3205.5,0.4428]
[1764822087308,4.28369923,3205.6,3205.3,0.00691421]
[1764822087505,1.07583959,3205.5,3204.2,2.13067015]
[1764822087712,1.39157154,3204.2,3203.9,0.15604]
[1764822087909,40.8,3204.1,3203.9,0.15604]
[1764822088600,40.80372919,3204.1,3204.0,0.45356468]
[1764822090309,40.80372919,3204.1,3203.5,1.2114]
[1764822090507,4.59937154,3203.6,3203.5,0.4428]
[1764822090809,1.66424507,3205.6,3205.5,1.9449]
[1764822091001,3.2078,3205.7,3205.5,0.4428]
[1764822091002,4.59937154,3205.7,3205.5,0.4428]
[1764822091201,40.8,3205.6,3205.5,0.4428]
[1764822091401,40.8,3205.6,3205.5,1.2114]
[1764822091614,40.8,3205.6,3205.5,0.4428]
[1764822091810,40.80252979,3205.6,3205.5,0.44535837]
[1764822094610,40.80252979,3205.6,3205.5,0.00255837]
[1764822095116,40.80252979,3205.6,3205.2,0.00467574]
[1764822095318,1.39157154,3205.3,3205.2,0.00467574]
[1764822096116,42.19157154,3205.3,3205.2,0.00841364]
[1764822096316,45.39937154,3205.3,3204.4,4.88346611]
[1764822096519,1.39157154,3204.7,3204.4,3.2078]
[1764822096712,1.39157154,3204.7,3204.5,0.4424]
[1764822097112,1.39157154,3204.9,3204.5,1.918]
[1764822097620,1.39157154,3204.9,3204.5,1.16542677]
[1764822098333,1.39157154,3204.6,3204.5,0.44552677]
[1764822098831,1.39157154,3204.6,3204.5,0.00312677]
[1764822100428,42.19157154,3204.6,3204.5,0.00312677]
[1764822103230,42.19157154,3204.6,3203.9,3.36384]
[1764822103231,42.19157154,3204.6,3204.0,0.4424]
[1764822103532,1.39157154,3204.1,3204.0,0.4424]
[1764822104127,1.39157154,3204.1,3204.0,1.1623]
[1764822104321,1.39157154,3204.1,3204.0,0.44469744]
[1764822104523,42.19157154,3204.1,3204.0,1.16459744]
[1764822104937,40.8,3204.1,3204.0,1.92029744]
[1764822105530,4.59937154,3204.7,3204.5,0.4246]
[1764822106232,40.8,3204.6,3204.5,0.4246]
[1764822107532,40.8,3204.6,3204.5,1.1263]
[1764822108236,40.8,3204.6,3204.5,1.9014]
[1764822108924,40.8,3204.6,3204.5,1.1263]
[1764822109129,40.8,3204.6,3204.5,0.4246]
[1764822110237,40.8,3204.6,3204.5,1.1263]
[1764822110429,40.8,3204.6,3204.5,1.9014]
[1764822110738,40.8,3204.6,3204.5,1.1263]
[1764822110927,40.8,3204.6,3204.5,0.4246]
[1764822111735,40.8,3204.6,3204.5,1.1263]
[1764822113942,40.8,3204.6,3204.5,1.9014]
[1764822118433,40.8,3204.6,3204.5,1.1263]
[1764822119642,40.8,3204.6,3204.5,0.4246]
[1764822120239,40.8,3204.6,3204.1,3.30849611]
[1764822120546,40.8,3204.6,3204.1,1.63283]
[1764822121350,40.8,3204.6,3204.1,3.30849611]
[1764822123341,40.8,3204.6,3204.2,1.67566611]
[1764822123545,40.8,3204.6,3204.5,0.4471]
[1764822123744,40.8,3204.6,3204.2,1.67566611]
[1764822124341,1.42848043,3204.4,3204.2,1.67566611]
[1764822124546,1.42848043,3204.4,3204.3,1.5147]
[1764822124742,40.8,3204.6,3204.5,1.1966]
[1764822125044,40.8,3204.6,3204.5,1.9618]
[1764822125748,40.8,3204.6,3204.5,1.1966]
[1764822126650,40.8,3204.6,3204.5,1.9618]
[1764822128350,3.2078,3204.7,3204.6,1.5147]
[1764822128652,3.2078,3204.7,3204.5,2.12908406]
[1764822128844,44.0078,3204.7,3204.5,2.12908406]
[1764822129044,44.0078,3204.7,3204.5,2.87858406]
[1764822129350,44.0078,3204.7,3204.5,2.12908406]
[1764822131153,44.0078,3204.7,3204.5,0.4471]
[1764822132245,1.42848043,3204.6,3204.4,1.68198406]
[1764822132442,1.42848043,3204.6,3204.3,1.68198406]
[1764822132650,1.42848043,3204.4,3204.2,1.68198406]
[1764822132851,1.42848043,3204.3,3204.2,1.68198406]
[1764822134255,1.42848043,3204.3,3204.1,1.68198406]
[1764822135549,1.77140628,3204.2,3204.0,0.00229744]
[1764822135753,2.46640213,3204.1,3204.0,0.00229744]
[1764822135945,2.46640213,3204.1,3203.6,1.68198406]
[1764822136153,1.42848043,3203.7,3203.5,2.12438406]
[1764822136446,1.42848043,3203.7,3203.5,2.87388406]
[1764822136655,1.42848043,3203.7,3203.5,3.63908406]
[1764822136839,0.48492923,3203.8,3203.7,1.67075]
[1764822137041,0.4337,3205.0,3203.5,8.12727412]
[1764822137042,42.3054,3205.0,3204.9,1.5147]
[1764822137243,41.5498,3205.0,3204.9,1.5147]
[1764822139151,41.5498,3205.0,3204.9,3.19520013]
[1764822139553,41.9835,3205.0,3204.9,1.68050013]
[1764822140750,41.9835,3205.0,3204.9,2.43000013]
[1764822140946,41.5498,3205.0,3204.9,3.19520013]
[1764822141352,41.5498,3205.0,3204.9,1.5147]
[1764822141554,41.5498,3205.0,3204.9,3.19520013]
[1764822142051,1.51007574,3205.3,3205.2,1.5147]
[1764822142251,1.51007574,3205.3,3205.2,0.7495]
[1764822142555,43.73855617,3205.3,3205.2,0.7495]
[1764822143147,43.73855617,3205.3,3205.2,1.5147]
[1764822143554,43.73855617,3205.3,3205.2,0.7495]
[1764822148757,1.4868,3205.2,3205.1,3.9573]
[1764822149958,1.4868,3205.2,3205.1,4.708]
[1764822151858,1.4868,3205.2,3205.1,1.5002]
[1764822152060,1.4868,3205.2,3205.1,4.708]
[1764822153762,1.4868,3205.2,3205.1,3.9573]
[1764822154059,1.4868,3205.2,3205.1,3.2078]
[1764822155058,40.80467574,3205.3,3205.2,1.4449]
[1764822155366,1.42848043,3206.4,3205.5,1.8663]
[1764822155665,1.5283,3205.9,3205.8,4.6527]
[1764822156360,1.5283,3205.9,3205.8,4.65552061]
[1764822156361,1.53131153,3205.9,3205.8,4.65552061]
[1764822157462,0.00301153,3205.9,3205.8,4.65552061]
[1764822157655,0.77201153,3205.9,3205.8,4.65552061]
[1764822157960,0.00301153,3205.9,3205.8,4.65552061]
[1764822158154,1.53131153,3205.9,3205.8,3.21062061]
[1764822158359,1.53131153,3205.9,3205.8,4.65552061]
[1764822158557,0.77201153,3205.9,3205.8,4.65552061]
[1764822159463,1.53131153,3205.9,3205.8,4.65552061]
[1764822159668,2.95979196,3205.9,3205.8,3.21062061]
[1764822159858,2.95979196,3205.9,3205.8,3.93422061]
[1764822160056,2.95979196,3205.9,3205.8,4.65552061]
[1764822160758,2.95979196,3205.9,3205.8,3.21062061]
[1764822160963,1.87307542,3205.9,3205.8,0.00282061]
[1764822161963,1.87307542,3205.9,3205.8,0.72642061]
[1764822162166,1.53131153,3205.9,3205.8,1.44772061]
[1764822164468,1.53131153,3205.9,3205.8,4.65552061]
[1764822165568,0.00301153,3205.9,3205.8,4.65552061]
[1764822166058,0.77201153,3205.9,3205.8,4.65552061]
[1764822166369,1.53131153,3205.9,3205.8,4.65552061]
[1764822168669,0.77201153,3205.9,3205.8,4.65552061]
[1764822176178,1.47701153,3205.9,3205.8,4.65552061]
[1764822176982,0.7608,3205.2,3205.1,2.37884467]
[1764822177168,0.4569,3205.5,3205.1,3.14744467]
[1764822177364,1.9227,3205.5,3205.4,1.4699]
[1764822177977,1.9227,3205.5,3205.4,1.47227253]
[1764822178679,1.9227,3205.5,3205.4,0.77097253]
[1764822178877,1.9227,3205.5,3205.4,0.00237253]
[1764822178878,2.26505436,3205.5,3205.4,0.00237253]
[1764822179082,2.95602008,3205.5,3205.4,0.00237253]
[1764822179580,45.18450051,3205.5,3205.4,0.00237253]
[1764822179981,45.18450051,3205.5,3205.4,1e-08]
[1764822180786,45.18450051,3205.5,3204.6,3.21247574]
[1764822180787,1.4658,3204.7,3204.6,3.21247574]
[1764822181083,1.4658,3204.7,3204.6,3.98107574]
[1764822181284,1.4658,3204.7,3204.6,3.21247574]
[1764822181678,1.4658,3204.7,3204.6,3.2164705]
[1764822181985,42.2658,3204.7,3204.6,4.6863705]
[1764822182581,42.2658,3204.7,3204.6,0.0086705]
[1764822183584,42.2658,3204.7,3204.6,0.7772705]
[1764822184284,42.2658,3204.7,3204.6,0.0086705]
[1764822185781,42.2658,3204.7,3204.6,0.7834705]
[1764822186587,42.2658,3204.7,3204.6,0.0086705]
[1764822188080,42.2658,3204.7,3204.6,0.7834705]
[1764822189388,42.2658,3204.7,3204.6,0.0086705]
[1764822190900,42.2658,3204.7,3204.6,0.7834705]
[1764822192294,42.2658,3204.7,3204.6,0.0086705]
[1764822199302,42.2658,3204.7,3204.6,1.5560705]
[1764822199303,0.7608,3204.7,3204.6,1.5560705]
[1764822199806,1.4606,3205.0,3204.9,1.5474]
[1764822200102,1.4606,3204.7,3204.6,3.2164705]
[1764822200707,1.4606,3204.7,3204.6,4.7638705]
[1764822201606,1.4606,3205.0,3204.9,1.5474]
[1764822203099,1.4606,3204.7,3204.6,4.7638705]
[1764822203605,0.757,3204.7,3204.6,4.7638705]
[1764822203806,1.4606,3204.7,3204.6,4.7638705]
[1764822204700,0.757,3204.7,3204.6,4.7638705]
[1764822206309,0.757,3204.7,3204.6,6.44141517]
[1764822206807,0.757,3204.7,3204.6,4.7638705]
[1764822207204,0.757,3204.7,3204.6,6.44141517]
[1764822207705,1.4606,3204.7,3204.6,6.44141517]
[1764822207906,0.757,3204.7,3204.6,6.44141517]
[1764822208105,1.8832,3205.0,3204.9,0.7748]
[1764822208305,1.4606,3205.0,3204.9,1.5474]
[1764822208810,42.2606,3205.0,3204.9,1.5474]
[1764822209007,40.8,3205.0,3204.9,1.5474]
[1764822209413,5.1253,3205.5,3205.4,1.5474]
[1764822209602,6.16450889,3205.5,3205.4,1.5474]
[1764822209907,46.96450889,3205.5,3205.4,1.5474]
[1764822210210,46.96450889,3205.5,3205.4,0.7748]
[1764822210406,46.2681366,3205.5,3205.4,0.7748]
[1764822211209,0.757,3205.1,3205.0,3.68997057]
[1764822213313,0.757,3205.1,3205.0,2.009]
[1764822214212,41.2569,3205.5,3205.4,0.7414]
[1764822214612,41.2569,3205.5,3205.4,1.5051]
[1764822214814,41.2569,3205.5,3205.4,0.7414]
[1764822215315,1.5303,3205.1,3205.0,6.85547057]
[1764822215718,0.7655,3205.1,3205.0,6.85547057]
[1764822216213,41.2569,3205.5,3205.4,0.7414]
[1764822217119,0.7655,3205.1,3205.0,6.85547057]
[1764822217315,41.2569,3205.5,3205.4,0.7414]
[1764822217619,41.2569,3205.5,3205.4,1.5051]
[1764822218119,41.2569,3205.5,3205.4,0.7414]
[1764822219517,40.8,3205.5,3205.4,1.5051]
[1764822220615,3.21081153,3205.9,3205.8,1.5167]
[1764822220616,1.48401153,3205.9,3205.8,1.5167]
[1764822221012,42.28401153,3205.9,3205.8,1.5167]
[1764822221526,41.56851153,3205.9,3205.8,1.5167]
[1764822222323,41.56851153,3205.9,3205.8,0.7414]
[1764822223125,41.56851153,3205.9,3205.8,1.5167]
[1764822223824,40.80301153,3205.9,3205.8,4.7245]
[1764822228428,1.47081153,3205.9,3205.8,4.7245]
[1764822229131,0.75531153,3205.9,3205.8,4.7245]
[1764822229531,0.00301153,3205.9,3205.8,4.7245]
[1764822229923,1.47247574,3206.2,3206.1,0.7622]
[1764822230225,1.47247574,3206.2,3206.1,1.5375]
[1764822230422,42.27247574,3206.2,3206.1,1.5375]
[1764822231024,42.27478019,3206.2,3206.1,1.5375]
[1764822234528,41.55928019,3206.2,3206.1,1.5375]
[1764822235032,41.55928019,3206.2,3206.1,0.7622]
[1764822238627,1.4678,3205.9,3205.8,5.65097057]
[1764822238832,1.4678,3205.9,3205.8,4.88877057]
[1764822239036,1.4678,3205.9,3205.8,5.65097057]
[1764822239433,1.4678,3205.9,3205.8,6.42627057]
[1764822240128,1.4678,3205.9,3205.8,5.65097057]
[1764822240334,1.4678,3205.9,3205.8,6.42627057]
[1764822245343,1.4678,3205.9,3205.8,4.7453]
[1764822248046,1.4678,3205.9,3205.8,3.97]
[1764822249246,1.4678,3205.9,3205.8,3.2078]
[1764822249448,1.4678,3205.9,3205.8,4.88829253]
[1764822249649,1.4678,3205.9,3205.8,5.65469253]
[1764822251150,1.4678,3205.9,3205.8,6.41979253]
[1764822251839,1.4678,3205.9,3205.8,4.7393]
[1764822252046,1.4678,3205.9,3205.8,5.65650925]
[1764822252353,1.4678,3205.9,3205.8,4.89015106]
[1764822253050,1.4678,3205.9,3205.8,6.42165106]
[1764822253349,1.4678,3205.9,3205.8,4.7393]
[1764822254254,1.4678,3205.9,3205.8,6.4216765]
[1764822254752,1.4678,3205.9,3205.8,4.7393]
[1764822258348,0.7523,3205.9,3205.8,4.7393]
[1764822258655,2.93789738,3206.1,3206.0,1.5315]
[1764822258854,3.28103267,3206.1,3206.0,1.5315]
[1764822259652,3.28104303,3206.1,3206.0,1.5315]
[1764822261146,1.85404565,3206.1,3206.0,1.5315]
[1764822264752,0.00698019,3206.2,3206.1,1.5315]
[1764822265055,0.7358,3206.1,3206.0,1.9628]
[1764822265446,1.5109,3206.1,3206.0,1.9628]
[1764822266044,1.51348269,3206.1,3206.0,1.9628]
[1764822267152,0.73838269,3206.1,3206.0,1.9628]
[1764822267659,1.51348269,3206.1,3206.0,1.9628]
[1764822268557,1.51348269,3206.1,3206.0,1.5315]
[1764822269858,2.94048007,3206.1,3206.0,0.7664]
[1764822270059,1.5109,3205.9,3205.8,3.2078]
[1764822270759,42.3109,3205.9,3205.8,3.9742]
[1764822271448,42.3109,3205.9,3205.8,3.2078]
[1764822271648,42.3109,3205.9,3205.8,4.89017628]
[1764822273758,42.3109,3205.9,3205.8,5.65657628]
[1764822274456,40.8,3205.9,3205.8,6.41997628]
[1764822274759,40.8,3205.9,3205.8,4.7376]
[1764822276053,40.8,3205.9,3205.8,6.41993844]
[1764822276958,40.8,3205.9,3205.8,4.7376]
[1764822278356,1.52968269,3206.1,3206.0,1.4748]
[1764822278555,1.52968269,3206.1,3206.0,3.15705083]
[1764822278757,42.32968269,3206.1,3206.0,3.15705083]
[1764822286762,42.32968269,3206.1,3206.0,2.39365083]
[1764822287466,42.32968269,3206.1,3206.0,1.68225083]
[1764822287660,42.67285104,3206.1,3206.0,1.68225083]
[1764822288366,1.9208,3206.0,3205.9,1.68225083]
[1764822289253,3.34779738,3206.0,3205.9,1.68225083]
[1764822291870,1.9208,3206.0,3205.9,1.68225083]
[1764822292169,3.34779738,3206.0,3205.9,1.68225083]
[1764822294265,3.69093199,3206.0,3205.9,1.68225083]
[1764822294467,1.4697,3205.9,3205.8,4.89005083]
[1764822295068,1.4697,3205.9,3205.8,3.2078]
[1764822295764,1.4697,3205.6,3205.4,4.89043937]
[1764822295968,1.9208,3205.5,3205.4,4.89043937]
[1764822296166,1.4697,3205.5,3205.4,6.35203937]
[1764822296466,0.4511,3206.0,3205.7,1.4616]
[1764822296467,1.4697,3205.8,3205.7,1.4616]
[1764822296667,1.4697,3205.8,3205.7,3.14373703]
[1764822297069,1.4697,3205.8,3205.7,1.68213703]
[1764822297070,2.89669738,3205.8,3205.7,1.68213703]
[1764822298377,1.4697,3205.7,3205.6,1.68213703]
[1764822298871,1.4697,3205.6,3205.5,1.68213703]
[1764822299176,1.4697,3205.5,3205.4,5.59083703]
[1764822299376,1.42699738,3205.9,3205.5,0.4597]
[1764822299579,1.4697,3205.6,3205.5,3.14367509]
[1764822299876,1.4697,3205.6,3205.5,2.38297509]
[1764822300873,1.4697,3205.6,3205.5,3.14367509]
[1764822301277,2.89669738,3205.9,3205.8,1.4616]
[1764822301473,3.9338133,3205.9,3205.8,1.4616]
[1764822302070,3.9338133,3205.9,3205.8,0.7009]
[1764822302369,3.9338133,3205.9,3205.5,1.68207509]
[1764822302570,2.89669738,3205.6,3205.5,1.68207509]
[1764822304076,2.89669738,3205.6,3205.5,2.38297509]
[1764822304572,1.9486,3205.5,3205.4,4.88987509]
[1764822305476,1.9486,3205.5,3205.4,3.2078]
[1764822306271,1.4953,3205.5,3205.4,4.6611]
[1764822307670,1.215,3206.0,3205.5,0.4519]
[1764822307868,0.7314,3205.6,3205.5,1.9052]
[1764822308070,1.4953,3205.6,3205.5,1.9052]
[1764822309975,0.7314,3205.6,3205.5,1.9052]
[1764822310177,0.4511,3206.0,3205.5,1.9052]
[1764822310381,0.7314,3205.6,3205.5,1.1617]
[1764822310676,0.7314,3205.6,3205.5,1.9052]
[1764822311979,0.4511,3206.0,3205.5,1.9052]
[1764822312180,2.52875199,3205.9,3205.8,1.4533]
[1764822313285,2.52875199,3205.9,3205.8,0.7435]
[1764822314876,1.4953,3205.5,3205.4,4.88987509]
[1764822315077,1.9486,3205.5,3205.4,4.88987509]
[1764822315575,1.9486,3205.5,3205.4,5.63337509]
[1764822315777,1.9486,3205.5,3205.4,4.88987509]
[1764822317375,1.9486,3205.5,3205.4,5.63337509]
[1764822317777,0.7314,3205.5,3205.4,6.34317509]
[1764822317977,1.4953,3205.5,3205.4,6.34317509]
[1764822319678,0.7314,3205.6,3205.5,1.9052]
[1764822319878,1.84259592,3206.0,3205.5,1.9052]
[1764822320085,0.7314,3205.6,3205.5,3.58727509]
[1764822321685,1.84259592,3206.0,3205.5,3.58727509]
[1764822321887,2.5296557,3205.9,3205.8,0.7435]
[1764822322479,2.5296557,3205.9,3205.8,1.4533]
[1764822322682,1.7657557,3205.9,3205.8,1.4533]
[1764822322877,2.5296557,3205.9,3205.8,1.4533]
[1764822323280,40.80258269,3206.1,3205.8,6.34317509]
[1764822323485,40.80258269,3206.1,3206.0,1.4533]
[1764822323681,41.83720434,3206.1,3206.0,1.4533]
[1764822327486,41.14577938,3206.1,3206.0,1.4533]
[1764822327892,41.14577938,3206.1,3206.0,0.7435]
[1764822328991,1.4953,3205.9,3205.8,6.34317509]
[1764822331193,1.4953,3205.7,3205.6,1.68207509]
[1764822331393,1.9486,3205.5,3205.4,4.88987509]
[1764822331596,1.9486,3205.5,3205.4,3.2078]
[1764822332293,2.29158064,3205.5,3205.4,3.2078]
[1764822333396,2.29158064,3205.5,3204.8,2.24226554]
[1764822333397,1.4953,3205.2,3205.1,2.42557509]
[1764822334095,42.2953,3205.2,3205.1,3.13537509]
[1764822335492,42.2953,3205.2,3205.1,2.42557509]
[1764822337791,40.8,3205.2,3205.1,3.17357509]
[1764822340902,5.1432,3206.0,3205.9,0.7616]
[1764822341202,6.1831095,3206.0,3205.9,1.5096]
[1764822341403,46.9831095,3206.0,3205.9,1.5096]
[1764822341699,46.9831095,3206.0,3205.9,0.7616]
[1764822342793,46.9831095,3206.0,3205.9,1.5096]
[1764822343004,45.9432,3206.0,3205.9,1.5096]
[1764822343508,1.4821,3205.7,3205.6,2.44239466]
[1764822344304,1.4821,3205.7,3205.6,3.19039466]
[1764822344698,1.4821,3205.7,3205.6,2.44239466]
[1764822344898,1.4821,3205.7,3205.6,3.19039466]
[1764822346404,44.4611,3206.0,3205.9,1.4888]
[1764822346603,44.80385476,3206.0,3205.9,1.4888]
[1764822347104,44.80385476,3206.0,3205.9,0.7754]
[1764822347605,1.4811,3205.7,3205.6,3.16959466]
[1764822352002,1.4811,3205.7,3205.6,1.4888]
[1764822352202,1.4811,3205.7,3205.6,0.7754]
[1764822352409,1.4811,3205.7,3205.5,1.68079466]
[1764822352410,0.00258269,3206.1,3206.0,1.938]
[1764822352701,4.6889,3206.8,3206.7,1.4888]
[1764822352907,1.82393843,3206.8,3206.7,1.4888]
[1764822353310,1.82378953,3206.8,3206.7,1.4888]
[1764822353607,1.82644102,3206.8,3206.7,1.4888]
[1764822354201,1.48375149,3206.8,3206.7,1.4888]
[1764822355404,1.9316,3206.5,3206.4,3.21247574]
[1764822355603,1.9316,3206.5,3206.4,0.00467574]
[1764822355604,3.32309592,3206.5,3206.4,0.00467574]
[1764822355914,1.4811,3206.5,3206.4,1.49347574]
[1764822356306,0.7331,3206.5,3206.4,1.49347574]
[1764822357210,1.4811,3206.5,3206.4,1.49347574]
[1764822357915,1.892,3206.5,3206.4,0.78007574]
[1764822359923,1.892,3206.5,3206.4,1.49347574]
[1764822360325,0.7331,3206.5,3206.4,0.00467574]
[1764822360517,1.4811,3206.5,3206.4,1.49347574]
[1764822360918,1.892,3206.5,3206.4,0.00467574]
[1764822361120,1.892,3206.5,3206.4,0.78007574]
[1764822362924,1.4811,3206.5,3206.4,1.49347574]
[1764822363430,4.6889,3206.7,3206.6,1.4888]
[1764822364114,4.7025,3206.7,3206.6,1.5097]
[1764822364319,4.7025,3206.7,3206.6,0.7332]
[1764822364917,4.7025,3206.7,3206.4,0.00467574]
[1764822365221,0.00467574,3207.1,3206.4,0.00467574]
[1764822365222,2.03970433,3208.5,3206.6,10.00730826]
[1764822365422,3.2078,3209.4,3208.4,3.06523943]
[1764822365625,41.5744,3209.4,3209.1,3.2078]
[1764822365822,0.7744,3209.2,3209.1,4.87986744]
[1764822366220,0.77766592,3209.2,3209.1,4.88243406]
[1764822366415,0.77766592,3209.2,3209.1,3.21036662]
[1764822367632,1.4947,3208.9,3208.8,0.00467574]
[1764822367820,4.7025,3208.9,3208.8,0.00467574]
[1764822368023,4.7025,3208.9,3208.8,0.73787574]
[1764822368225,4.70717574,3208.9,3208.8,0.73787574]
[1764822368728,4.70717574,3208.9,3208.8,0.74036407]
[1764822368930,4.70717574,3208.9,3208.8,0.00716407]
[1764822370024,45.50717574,3208.9,3208.8,0.00716407]
[1764822373227,1.4947,3207.8,3207.7,3.2078]
[1764822373733,1.4947,3207.8,3207.7,4.7175]
[1764822374227,1.4947,3207.8,3207.7,4.72091522]
[1764822374533,1.4947,3208.1,3208.0,0.7332]
[1764822374830,0.7744,3208.1,3208.0,1.5097]
[1764822375032,0.7744,3208.1,3207.7,3.21121522]
[1764822375033,1.4947,3207.8,3207.7,4.72091522]
[1764822375332,0.7744,3207.8,3207.7,4.72091522]
[1764822375535,0.4332,3208.0,3207.9,1.5097]
[1764822375536,0.7744,3208.0,3207.9,1.5097]